[Event "Live Chess"]
[Site "Chess.com"]
[Date "2024.06.01"]
[Round "-"]
[White "GEMdzq"]
[Black "bobby_jamesFischer86"]
[Result "1-0"]
[WhiteElo "2315"]
[BlackElo "1633"]
[TimeControl "300"]
[EndTime "14:10:32 PDT"]
[Termination "GEMdzq won by checkmate"]

1. e4 {[%clk 0:04:57.9]} 1... c5 {[%clk 0:04:55.7]} 2. Nf3 {[%clk 0:04:55.3]}
2... d6 {[%clk 0:04:54.4]} 3. d4 {[%clk 0:04:54.4]} 3... cxd4 {[%clk 0:04:52.8]}
4. Nxd4 {[%clk 0:04:54.3]} 4... Nf6 {[%clk 0:04:51.6]} 5. Nc3 {[%clk 0:04:53.5]}
5... a6 {[%clk 0:04:51]} 6. Be2 {[%clk 0:04:52.5]} 6... e6 {[%clk 0:04:50.1]} 7.
O-O {[%clk 0:04:51.3]} 7... Nc6 {[%clk 0:04:49.5]} 8. Be3 {[%clk 0:04:50.3]}
8... Nxd4 {[%clk 0:04:48.7]} 9. Bxd4 {[%clk 0:04:49.5]} 9... Be7 {[%clk
0:04:47.9]} 10. Qd2 {[%clk 0:04:48.5]} 10... O-O {[%clk 0:04:46.8]} 11. Rad1
{[%clk 0:04:47.9]} 11... Qc7 {[%clk 0:04:44.7]} 12. Qe3 {[%clk 0:04:44.9]} 12...
d5 {[%clk 0:04:36.4]} 13. e5 {[%clk 0:04:42.3]} 13... Ne4 {[%clk 0:04:31.1]} 14.
Nxe4 {[%clk 0:04:39.8]} 14... dxe4 {[%clk 0:04:29.7]} 15. Qxe4 {[%clk
0:04:39.1]} 15... Rb8 {[%clk 0:04:25]} 16. Bd3 {[%clk 0:04:35.1]} 16... g6
{[%clk 0:04:23.8]} 17. Ba7 {[%clk 0:04:29.6]} 17... Ra8 {[%clk 0:04:21.8]} 18.
Be3 {[%clk 0:04:28.5]} 18... Bd7 {[%clk 0:04:19.7]} 19. h4 {[%clk 0:04:22.8]}
19... Bc6 {[%clk 0:04:18.1]} 20. Qf4 {[%clk 0:04:22]} 20... Qd8 {[%clk
0:04:14.3]} 21. h5 {[%clk 0:04:20.9]} 21... Qd5 {[%clk 0:04:09.2]} 22. Qg4
{[%clk 0:04:14.8]} 22... Qxe5 {[%clk 0:03:58.7]} 23. hxg6 {[%clk 0:04:11.7]}
23... hxg6 {[%clk 0:03:45.4]} 24. Bh6 {[%clk 0:04:08]} 24... Bd6 {[%clk
0:03:28.9]} 25. f4 {[%clk 0:03:51.7]} 25... Qc5+ {[%clk 0:03:17.7]} 26. Kh2
{[%clk 0:03:49.2]} 26... Rfe8 {[%clk 0:02:54.8]} 27. Bxg6 {[%clk 0:03:47.9]}
27... Bf8 {[%clk 0:02:18.9]} 28. Be4+ {[%clk 0:03:22]} 28... Kh8 {[%clk
0:02:12.2]} 29. Qh4 {[%clk 0:03:17.8]} 29... Bxh6 {[%clk 0:02:03.1]} 30. Qxh6+
{[%clk 0:03:16.5]} 30... Kg8 {[%clk 0:02:02.4]} 31. Bh7+ {[%clk 0:03:15.6]}
31... Kh8 {[%clk 0:02:01.3]} 32. Bg6+ {[%clk 0:03:14.9]} 32... Kg8 {[%clk
0:01:59.3]} 33. Qh7+ {[%clk 0:03:14.8]} 33... Kf8 {[%clk 0:01:55.1]} 34. Qxf7#
{[%clk 0:03:14.7]} 1-0

[Event "Live Chess"]
[Site "Chess.com"]
[Date "2024.06.01"]
[Round "-"]
[White "cymbalshift"]
[Black "FlyingChessKestrel13"]
[Result "0-1"]
[WhiteElo "1491"]
[BlackElo "2070"]
[TimeControl "300"]
[EndTime "14:10:33 PDT"]
[Termination "FlyingChessKestrel13 won by resignation"]

1. d4 {[%clk 0:04:57.7]} 1... Nf6 {[%clk 0:04:58.3]} 2. Nc3 {[%clk 0:04:56]}
2... e6 {[%clk 0:04:57.9]} 3. e4 {[%clk 0:04:54]} 3... d5 {[%clk 0:04:55.2]} 4.
e5 {[%clk 0:04:52.5]} 4... Nfd7 {[%clk 0:04:54.7]} 5. f4 {[%clk 0:04:51.9]} 5...
c5 {[%clk 0:04:54]} 6. Nf3 {[%clk 0:04:51.1]} 6... Nc6 {[%clk 0:04:52.7]} 7. Be3
{[%clk 0:04:50]} 7... cxd4 {[%clk 0:04:51.6]} 8. Nxd4 {[%clk 0:04:48.3]} 8...
Bc5 {[%clk 0:04:47.1]} 9. Nce2 {[%clk 0:04:46.6]} 9... Qb6 {[%clk 0:04:45.1]}
10. c3 {[%clk 0:04:32.5]} 10... a5 {[%clk 0:04:42.4]} 11. Qd2 {[%clk 0:04:23.9]}
11... O-O {[%clk 0:04:35.8]} 12. g4 {[%clk 0:04:22.7]} 12... a4 {[%clk
0:04:31.5]} 13. h4 {[%clk 0:04:12.4]} 13... Na5 {[%clk 0:04:30.3]} 14. f5 {[%clk
0:03:10.9]} 14... Nc4 {[%clk 0:04:26.8]} 15. Qc1 {[%clk 0:03:04.6]} 15... Nxb2
{[%clk 0:04:19.8]} 16. Qc2 {[%clk 0:02:58.1]} 16... Nc4 {[%clk 0:04:16.6]} 17.
Bf2 {[%clk 0:02:53]} 17... Ndxe5 {[%clk 0:04:12.1]} 18. Rb1 {[%clk 0:02:50.6]}
18... Na3 {[%clk 0:04:06.3]} 0-1

[Event "Live Chess"]
[Site "Chess.com"]
[Date "2024.06.01"]
[Round "-"]
[White "DylanMeyer1"]
[Black "RichardABates"]
[Result "0-1"]
[WhiteElo "1711"]
[BlackElo "2211"]
[TimeControl "300"]
[EndTime "14:10:35 PDT"]
[Termination "RichardABates won on time"]

1. c4 {[%clk 0:04:58]} 1... g6 {[%clk 0:04:57.9]} 2. Nc3 {[%clk 0:04:56.9]} 2...
Bg7 {[%clk 0:04:56.1]} 3. g3 {[%clk 0:04:56]} 3... e5 {[%clk 0:04:54.5]} 4. Bg2
{[%clk 0:04:55.5]} 4... f5 {[%clk 0:04:52.6]} 5. e3 {[%clk 0:04:54.7]} 5... Nf6
{[%clk 0:04:50.9]} 6. Nge2 {[%clk 0:04:53.8]} 6... O-O {[%clk 0:04:49.4]} 7. O-O
{[%clk 0:04:53.3]} 7... d6 {[%clk 0:04:47.9]} 8. b3 {[%clk 0:04:52.5]} 8... c6
{[%clk 0:04:43.9]} 9. Bb2 {[%clk 0:04:51.5]} 9... Be6 {[%clk 0:04:42.1]} 10. d4
{[%clk 0:04:50.2]} 10... e4 {[%clk 0:04:34.4]} 11. Nf4 {[%clk 0:04:49.4]} 11...
Bf7 {[%clk 0:04:31.3]} 12. f3 {[%clk 0:04:45.6]} 12... d5 {[%clk 0:04:29.2]} 13.
fxe4 {[%clk 0:04:39.2]} 13... dxe4 {[%clk 0:04:19.9]} 14. h3 {[%clk 0:04:25.5]}
14... Nbd7 {[%clk 0:04:09.8]} 15. Qc2 {[%clk 0:04:17.1]} 15... g5 {[%clk
0:03:51.6]} 16. Nfe2 {[%clk 0:04:13.8]} 16... Bg6 {[%clk 0:03:48.9]} 17. Rf2
{[%clk 0:03:58.7]} 17... c5 {[%clk 0:03:35.2]} 18. Raf1 {[%clk 0:03:42.3]} 18...
Qe7 {[%clk 0:03:28.2]} 19. Kh2 {[%clk 0:03:36.7]} 19... h5 {[%clk 0:03:14.6]}
20. Rxf5 {[%clk 0:02:21.3]} 20... Bxf5 {[%clk 0:03:09.7]} 21. Rxf5 {[%clk
0:02:19.3]} 21... Rae8 {[%clk 0:03:01]} 22. Nd5 {[%clk 0:01:25.9]} 22... Nxd5
{[%clk 0:02:55.4]} 23. Rxd5 {[%clk 0:01:12.7]} 23... Rf2 {[%clk 0:02:50.3]} 24.
Qd1 {[%clk 0:00:58.9]} 24... Ref8 {[%clk 0:02:32.6]} 25. dxc5 {[%clk 0:00:51.3]}
25... Bxb2 {[%clk 0:02:25.5]} 26. Rxd7 {[%clk 0:00:49.8]} 26... Qf6 {[%clk
0:02:12.4]} 27. Qd5+ {[%clk 0:00:11]} 27... Rf7 {[%clk 0:02:09.7]} 28. Rxf7
{[%clk 0:00:04.4]} 28... Qxf7 {[%clk 0:02:06.2]} 29. Qxg5+ {[%clk 0:00:01.4]}
29... Bg7 {[%clk 0:02:04.5]} 0-1

[Event "Live Chess"]
[Site "Chess.com"]
[Date "2024.06.01"]
[Round "-"]
[White "wadsy27"]
[Black "WorcesterYork"]
[Result "1-0"]
[WhiteElo "2537"]
[BlackElo "2494"]
[TimeControl "300"]
[EndTime "14:10:39 PDT"]
[Termination "wadsy27 won by resignation"]

1. d4 {[%clk 0:04:58.5]} 1... d6 {[%clk 0:04:58]} 2. c4 {[%clk 0:04:57.1]} 2...
Nf6 {[%clk 0:04:57.2]} 3. Nf3 {[%clk 0:04:55.9]} 3... Nbd7 {[%clk 0:04:56.5]} 4.
g3 {[%clk 0:04:55.2]} 4... e5 {[%clk 0:04:54.4]} 5. Nc3 {[%clk 0:04:53.3]} 5...
c6 {[%clk 0:04:53.8]} 6. e4 {[%clk 0:04:52.2]} 6... Be7 {[%clk 0:04:53.1]} 7.
Bg2 {[%clk 0:04:51.5]} 7... O-O {[%clk 0:04:52.4]} 8. O-O {[%clk 0:04:50.9]}
8... Re8 {[%clk 0:04:52]} 9. Qc2 {[%clk 0:04:50.4]} 9... exd4 {[%clk 0:04:51]}
10. Nxd4 {[%clk 0:04:49.5]} 10... a5 {[%clk 0:04:50.6]} 11. Rd1 {[%clk
0:04:48.7]} 11... Bf8 {[%clk 0:04:49.9]} 12. h3 {[%clk 0:04:46.3]} 12... Nc5
{[%clk 0:04:49]} 13. Be3 {[%clk 0:04:44.7]} 13... Qc7 {[%clk 0:04:45.8]} 14.
Rac1 {[%clk 0:04:43.5]} 14... g6 {[%clk 0:04:42.6]} 15. b3 {[%clk 0:04:40.1]}
15... Nfd7 {[%clk 0:04:40.5]} 16. Nde2 {[%clk 0:04:29.1]} 16... Bg7 {[%clk
0:04:38.9]} 17. Rd2 {[%clk 0:04:27.2]} 17... Ne5 {[%clk 0:04:35.4]} 18. Rcd1
{[%clk 0:04:26.3]} 18... Bxh3 {[%clk 0:04:23.8]} 19. Bxh3 {[%clk 0:04:24.5]}
19... Nf3+ {[%clk 0:04:23.1]} 20. Kg2 {[%clk 0:04:23.8]} 20... Nxd2 {[%clk
0:04:22.3]} 21. Qxd2 {[%clk 0:04:23.2]} 21... Nxe4 {[%clk 0:04:20.7]} 22. Nxe4
{[%clk 0:04:22.6]} 22... Rxe4 {[%clk 0:04:20.6]} 23. Qxd6 {[%clk 0:04:21.8]}
23... Qxd6 {[%clk 0:04:19.9]} 24. Rxd6 {[%clk 0:04:20.6]} 24... a4 {[%clk
0:04:16.6]} 25. Rd7 {[%clk 0:04:12.2]} 25... axb3 {[%clk 0:04:15.3]} 26. axb3
{[%clk 0:04:05.6]} 26... b5 {[%clk 0:04:12.1]} 27. Kh2 {[%clk 0:04:01.9]} 27...
bxc4 {[%clk 0:04:10.1]} 28. bxc4 {[%clk 0:04:00.2]} 28... Rxc4 {[%clk
0:04:08.1]} 29. Bg2 {[%clk 0:03:55.7]} 29... h5 {[%clk 0:04:04.3]} 30. Nd4
{[%clk 0:03:52.6]} 30... Rc8 {[%clk 0:04:01.1]} 31. Nf3 {[%clk 0:03:49.2]} 31...
Bf6 {[%clk 0:03:53.6]} 32. Ng5 {[%clk 0:03:47]} 32... Rf8 {[%clk 0:03:47.9]} 33.
Rc7 {[%clk 0:03:42.6]} 33... h4 {[%clk 0:03:46.4]} 34. Rxc6 {[%clk 0:03:30.2]}
34... hxg3+ {[%clk 0:03:46.3]} 35. Kxg3 {[%clk 0:03:27.1]} 35... Rxc6 {[%clk
0:03:41.8]} 36. Bxc6 {[%clk 0:03:26]} 36... Kg7 {[%clk 0:03:36.4]} 37. Bd5
{[%clk 0:03:22.2]} 37... Bxg5 {[%clk 0:03:32.9]} 38. Bxg5 {[%clk 0:03:21]} 38...
f6 {[%clk 0:03:32.6]} 39. Be3 {[%clk 0:03:20]} 39... g5 {[%clk 0:03:31]} 40. Kg4
{[%clk 0:03:17.5]} 40... Rb8 {[%clk 0:03:25.9]} 41. Kf5 {[%clk 0:03:15.3]} 41...
Rb5 {[%clk 0:03:23.5]} 42. Ke6 {[%clk 0:03:14.6]} 42... Ra5 {[%clk 0:03:17.8]}
43. Bd4 {[%clk 0:03:13.1]} 43... Ra6+ {[%clk 0:03:16.8]} 44. Ke7 {[%clk
0:03:11.9]} 44... Kg6 {[%clk 0:03:14.1]} 45. Bf7+ {[%clk 0:03:04.4]} 45... Kf5
{[%clk 0:03:12.1]} 46. Be3 {[%clk 0:02:54.7]} 46... Ke4 {[%clk 0:02:55.3]} 47.
Be6 {[%clk 0:02:48]} 47... g4 {[%clk 0:02:48.8]} 48. Bxg4 {[%clk 0:02:45.6]}
48... f5 {[%clk 0:02:46.4]} 49. Bh3 {[%clk 0:02:26.6]} 49... f4 {[%clk
0:02:42.5]} 50. Bc5 {[%clk 0:02:24.9]} 50... Rh6 {[%clk 0:02:36.3]} 51. Be6
{[%clk 0:02:21.9]} 51... Kf3 {[%clk 0:02:31.6]} 52. Kd6 {[%clk 0:01:58.8]} 52...
Kg2 {[%clk 0:02:27.9]} 53. Ke5 {[%clk 0:01:54.2]} 53... Rh5+ {[%clk 0:02:22.4]}
54. Bf5 {[%clk 0:01:53.2]} 54... f3 {[%clk 0:02:21.4]} 55. Kf4 {[%clk
0:01:51.6]} 55... Rh8 {[%clk 0:02:13.1]} 56. Bg4 {[%clk 0:01:48.7]} 56... Rc8
{[%clk 0:02:07.2]} 57. Bxf3+ {[%clk 0:01:47.6]} 57... Kf1 {[%clk 0:02:06.7]} 58.
Be3 {[%clk 0:01:46.7]} 58... Rf8+ {[%clk 0:02:04.1]} 59. Kg3 {[%clk 0:01:45.3]}
59... Rg8+ {[%clk 0:02:03.1]} 60. Bg4 {[%clk 0:01:44.5]} 60... Rf8 {[%clk
0:02:01.9]} 61. f4 {[%clk 0:01:43.7]} 61... Ke1 {[%clk 0:02:00]} 62. Kf3 {[%clk
0:01:39.5]} 62... Kd1 {[%clk 0:01:57.7]} 63. f5 {[%clk 0:01:38.4]} 63... Kc2
{[%clk 0:01:56]} 64. Bh6 {[%clk 0:01:37.4]} 64... Rf7 {[%clk 0:01:51.5]} 65. Kf4
{[%clk 0:01:36.1]} 65... Kd3 {[%clk 0:01:50.6]} 66. Bh5 {[%clk 0:01:35.3]} 66...
Ra7 {[%clk 0:01:47.7]} 67. f6 {[%clk 0:01:34.2]} 67... Kd4 {[%clk 0:01:46.9]}
68. f7 {[%clk 0:01:32.8]} 1-0

[Event "Live Chess"]
[Site "Chess.com"]
[Date "2024.06.01"]
[Round "-"]
[White "Ferrarifan27"]
[Black "LL220284LL"]
[Result "1-0"]
[WhiteElo "2071"]
[BlackElo "2539"]
[TimeControl "300"]
[EndTime "14:10:41 PDT"]
[Termination "Ferrarifan27 won by resignation"]

1. e4 {[%clk 0:04:56.3]} 1... c6 {[%clk 0:04:59.3]} 2. d4 {[%clk 0:04:49.4]}
2... g6 {[%clk 0:04:59.2]} 3. Nf3 {[%clk 0:04:44]} 3... Bg7 {[%clk 0:04:56.6]}
4. Nc3 {[%clk 0:04:40]} 4... d6 {[%clk 0:04:55]} 5. Bg5 {[%clk 0:04:37.4]} 5...
Qa5 {[%clk 0:04:53.4]} 6. Qd2 {[%clk 0:04:35.8]} 6... Nd7 {[%clk 0:04:51.6]} 7.
h4 {[%clk 0:04:34.3]} 7... b5 {[%clk 0:04:49.7]} 8. h5 {[%clk 0:04:28.9]} 8...
b4 {[%clk 0:04:46.5]} 9. Ne2 {[%clk 0:04:27.9]} 9... Ngf6 {[%clk 0:04:44.3]} 10.
h6 {[%clk 0:04:23.8]} 10... Bf8 {[%clk 0:04:41.1]} 11. Ng3 {[%clk 0:04:21.2]}
11... Ba6 {[%clk 0:04:29.9]} 12. Bxa6 {[%clk 0:04:18.4]} 12... Qxa6 {[%clk
0:04:29.8]} 13. Qxb4 {[%clk 0:04:14.8]} 13... Rb8 {[%clk 0:04:23.2]} 14. Qc3
{[%clk 0:04:13.8]} 14... Qb5 {[%clk 0:04:03.6]} 15. O-O-O {[%clk 0:04:11.3]}
15... Nb6 {[%clk 0:03:59.2]} 16. b3 {[%clk 0:04:01.5]} 16... Ng4 {[%clk
0:03:47.9]} 17. d5 {[%clk 0:03:46]} 17... f6 {[%clk 0:03:43.1]} 18. dxc6 {[%clk
0:03:10.2]} 18... Rc8 {[%clk 0:03:25.3]} 19. c7 {[%clk 0:03:08.6]} 19... Qd7
{[%clk 0:03:11]} 20. Be3 {[%clk 0:03:01.2]} 20... Rxc7 {[%clk 0:03:00.5]} 21.
Qd2 {[%clk 0:02:55.9]} 21... Nxe3 {[%clk 0:02:48]} 22. Qxe3 {[%clk 0:02:53.1]}
22... Qc6 {[%clk 0:02:41.6]} 23. Rd2 {[%clk 0:02:49.6]} 23... e5 {[%clk
0:02:35.1]} 24. Qd3 {[%clk 0:02:28.2]} 24... Be7 {[%clk 0:02:32]} 25. Rhd1
{[%clk 0:02:24.1]} 25... O-O {[%clk 0:02:30.2]} 26. Kb1 {[%clk 0:02:15.4]} 26...
Rfc8 {[%clk 0:02:28.4]} 27. c4 {[%clk 0:02:14.2]} 27... Nd7 {[%clk 0:02:25.2]}
28. Qd5+ {[%clk 0:02:10.1]} 28... Qxd5 {[%clk 0:02:24.2]} 29. Rxd5 {[%clk
0:02:04.1]} 29... Nc5 {[%clk 0:02:21.7]} 30. Ne1 {[%clk 0:01:51.2]} 30... Kf7
{[%clk 0:02:17.9]} 31. Nd3 {[%clk 0:01:49.5]} 31... Nxd3 {[%clk 0:02:17]} 32.
R1xd3 {[%clk 0:01:46.1]} 32... Ke6 {[%clk 0:02:16.2]} 33. Ne2 {[%clk 0:01:40.6]}
33... Rc6 {[%clk 0:02:14.5]} 34. f4 {[%clk 0:01:32.1]} 34... Bf8 {[%clk
0:02:11]} 35. g4 {[%clk 0:01:28.4]} 35... Bxh6 {[%clk 0:02:05.1]} 36. f5+ {[%clk
0:01:27.5]} 36... Ke7 {[%clk 0:01:51.4]} 37. Rh3 {[%clk 0:01:25.6]} 37... Bg7
{[%clk 0:01:49.8]} 38. Rxh7 {[%clk 0:01:24]} 38... Kf7 {[%clk 0:01:47.6]} 39.
Nc3 {[%clk 0:01:14.5]} 39... Rh8 {[%clk 0:01:41.3]} 40. Rxh8 {[%clk 0:01:10.1]}
40... Bxh8 {[%clk 0:01:41.2]} 41. Ra5 {[%clk 0:01:08.3]} 41... Rc7 {[%clk
0:01:39.7]} 42. Nd5 {[%clk 0:01:07.3]} 42... Rb7 {[%clk 0:01:34.2]} 43. Ra6
{[%clk 0:01:05.7]} 43... Rd7 {[%clk 0:01:32.1]} 44. Nb4 {[%clk 0:01:04]} 44...
gxf5 {[%clk 0:01:28.5]} 45. gxf5 {[%clk 0:01:01.6]} 45... Kg7 {[%clk 0:01:26.9]}
46. Nc6 {[%clk 0:01:00.1]} 46... Kh6 {[%clk 0:01:25.6]} 47. Rxa7 {[%clk
0:00:58.4]} 47... Rxa7 {[%clk 0:01:24.3]} 48. Nxa7 {[%clk 0:00:57.1]} 48... Kg5
{[%clk 0:01:24.2]} 49. Kc2 {[%clk 0:00:55.6]} 49... Kf4 {[%clk 0:01:22.4]} 50.
Kd3 {[%clk 0:00:54.5]} 50... Bg7 {[%clk 0:01:21.2]} 51. Nb5 {[%clk 0:00:51.4]}
51... Bf8 {[%clk 0:01:19.4]} 52. a4 {[%clk 0:00:50.5]} 52... Be7 {[%clk
0:01:18.4]} 53. a5 {[%clk 0:00:49.8]} 1-0

[Event "Live Chess"]
[Site "Chess.com"]
[Date "2024.06.01"]
[Round "-"]
[White "nigelst"]
[Black "AndrewBak1"]
[Result "0-1"]
[WhiteElo "1665"]
[BlackElo "1854"]
[TimeControl "300"]
[EndTime "14:10:42 PDT"]
[Termination "AndrewBak1 won on time"]

1. e4 {[%clk 0:04:57.2]} 1... c5 {[%clk 0:04:58.3]} 2. Nf3 {[%clk 0:04:55.8]}
2... Nc6 {[%clk 0:04:55.6]} 3. Bb5 {[%clk 0:04:54.2]} 3... e6 {[%clk 0:04:46.4]}
4. O-O {[%clk 0:04:52.3]} 4... Nge7 {[%clk 0:04:30.6]} 5. c3 {[%clk 0:04:49.2]}
5... a6 {[%clk 0:04:28.6]} 6. Ba4 {[%clk 0:04:46.2]} 6... b5 {[%clk 0:04:26.8]}
7. Bc2 {[%clk 0:04:44.9]} 7... d5 {[%clk 0:04:26.3]} 8. exd5 {[%clk 0:04:43.1]}
8... Nxd5 {[%clk 0:04:19.9]} 9. d4 {[%clk 0:04:41.8]} 9... Be7 {[%clk
0:04:17.2]} 10. Qd3 {[%clk 0:04:09.6]} 10... Nf4 {[%clk 0:04:02.5]} 11. Qe4
{[%clk 0:04:03.6]} 11... Nd5 {[%clk 0:03:56.8]} 12. Ne5 {[%clk 0:03:51.7]} 12...
Nxe5 {[%clk 0:03:54.4]} 13. Qxe5 {[%clk 0:03:49.5]} 13... Bf6 {[%clk 0:03:44.6]}
14. Qe4 {[%clk 0:03:44.2]} 14... Bb7 {[%clk 0:03:28]} 15. Qg4 {[%clk 0:03:37]}
15... cxd4 {[%clk 0:03:20.2]} 16. cxd4 {[%clk 0:03:34.9]} 16... Rc8 {[%clk
0:03:18.3]} 17. Be4 {[%clk 0:03:27.1]} 17... Bxd4 {[%clk 0:02:55.8]} 18. Nc3
{[%clk 0:03:18.4]} 18... O-O {[%clk 0:02:41.1]} 19. Qh3 {[%clk 0:02:59.1]} 19...
g6 {[%clk 0:02:38.2]} 20. Bh6 {[%clk 0:02:56.2]} 20... Bg7 {[%clk 0:02:28.8]}
21. Bxg7 {[%clk 0:02:53.6]} 21... Kxg7 {[%clk 0:02:28.7]} 22. Rad1 {[%clk
0:02:48.8]} 22... Qf6 {[%clk 0:02:14.9]} 23. Bxd5 {[%clk 0:02:40.2]} 23... Bxd5
{[%clk 0:02:14.8]} 24. Nxd5 {[%clk 0:02:38.8]} 24... exd5 {[%clk 0:02:02]} 25.
Rxd5 {[%clk 0:02:37.3]} 25... Qxb2 {[%clk 0:02:00.3]} 26. Qb3 {[%clk 0:01:51.2]}
26... Qxb3 {[%clk 0:01:49.1]} 27. axb3 {[%clk 0:01:49.2]} 27... Rc3 {[%clk
0:01:45.6]} 28. Rd6 {[%clk 0:01:45.5]} 28... Rxb3 {[%clk 0:01:42]} 29. Rxa6
{[%clk 0:01:43.3]} 29... Rc8 {[%clk 0:01:38.7]} 30. g3 {[%clk 0:01:39.6]} 30...
Rb2 {[%clk 0:01:35.8]} 31. Ra7 {[%clk 0:01:35]} 31... Rb8 {[%clk 0:01:34.4]} 32.
Re1 {[%clk 0:01:33.3]} 32... b4 {[%clk 0:01:23.4]} 33. Ree7 {[%clk 0:01:31.8]}
33... Rf8 {[%clk 0:01:22.1]} 34. Reb7 {[%clk 0:01:27]} 34... Rb1+ {[%clk
0:01:21.1]} 35. Kg2 {[%clk 0:01:25.1]} 35... b3 {[%clk 0:01:21]} 36. Ra3 {[%clk
0:01:22.1]} 36... b2 {[%clk 0:00:56.2]} 37. Rab3 {[%clk 0:01:20.3]} 37... h5
{[%clk 0:00:49.9]} 38. Rxb2 {[%clk 0:01:19]} 38... Rxb2 {[%clk 0:00:49.8]} 39.
Rxb2 {[%clk 0:01:16.6]} 39... h4 {[%clk 0:00:49.5]} 40. Kh3 {[%clk 0:01:12.7]}
40... hxg3 {[%clk 0:00:48.3]} 41. hxg3 {[%clk 0:01:10.7]} 41... Rc8 {[%clk
0:00:45.8]} 42. f4 {[%clk 0:01:07.5]} 42... Kf6 {[%clk 0:00:45.7]} 43. Kg4
{[%clk 0:01:04.9]} 43... Rc4 {[%clk 0:00:42.6]} 44. Rb6+ {[%clk 0:01:03.5]}
44... Kg7 {[%clk 0:00:41.5]} 45. Rb3 {[%clk 0:00:58.9]} 45... Kh6 {[%clk
0:00:38.4]} 46. Kf3 {[%clk 0:00:56]} 46... Kh5 {[%clk 0:00:36.9]} 47. Rb5+
{[%clk 0:00:54.3]} 47... Kh6 {[%clk 0:00:33.8]} 48. Rb3 {[%clk 0:00:52.7]} 48...
f6 {[%clk 0:00:32.8]} 49. Rb6 {[%clk 0:00:50.8]} 49... Kg7 {[%clk 0:00:31.2]}
50. Rb7+ {[%clk 0:00:49.4]} 50... Kf8 {[%clk 0:00:30]} 51. Ra7 {[%clk
0:00:42.4]} 51... g5 {[%clk 0:00:26.9]} 52. fxg5 {[%clk 0:00:38]} 52... fxg5
{[%clk 0:00:26.8]} 53. Ra5 {[%clk 0:00:33.8]} 53... g4+ {[%clk 0:00:25.7]} 54.
Kg2 {[%clk 0:00:31.5]} 54... Rc2+ {[%clk 0:00:24.9]} 55. Kg1 {[%clk 0:00:30.3]}
55... Rc3 {[%clk 0:00:23.9]} 56. Kg2 {[%clk 0:00:29.5]} 56... Kf7 {[%clk
0:00:23.1]} 57. Ra6 {[%clk 0:00:22.9]} 57... Rc2+ {[%clk 0:00:20.9]} 58. Kg1
{[%clk 0:00:21]} 58... Rc4 {[%clk 0:00:20.6]} 59. Kf2 {[%clk 0:00:19.2]} 59...
Ke7 {[%clk 0:00:19.9]} 60. Ke3 {[%clk 0:00:17.1]} 60... Rc3+ {[%clk 0:00:18.9]}
61. Kf4 {[%clk 0:00:16.1]} 61... Rc4+ {[%clk 0:00:18.5]} 62. Kg5 {[%clk
0:00:15.1]} 62... Kf7 {[%clk 0:00:18.4]} 63. Kf5 {[%clk 0:00:13.8]} 63... Kg7
{[%clk 0:00:16.7]} 64. Kg5 {[%clk 0:00:12.1]} 64... Kf7 {[%clk 0:00:16.6]} 65.
Kf5 {[%clk 0:00:10.6]} 65... Ke7 {[%clk 0:00:16.5]} 66. Ra7+ {[%clk 0:00:09.6]}
66... Kd6 {[%clk 0:00:14.3]} 67. Kg5 {[%clk 0:00:08.4]} 67... Ke6 {[%clk
0:00:13.2]} 68. Ra6+ {[%clk 0:00:04.2]} 68... Kd5 {[%clk 0:00:13.1]} 69. Ra5+
{[%clk 0:00:03.1]} 69... Kc6 {[%clk 0:00:12.5]} 70. Ra6+ {[%clk 0:00:02.4]}
70... Kb5 {[%clk 0:00:11.9]} 71. Rf6 {[%clk 0:00:02.2]} 71... Rd4 {[%clk
0:00:10.4]} 72. Rf4 {[%clk 0:00:02.1]} 72... Rd5+ {[%clk 0:00:10]} 73. Rf5
{[%clk 0:00:01.2]} 73... Kc5 {[%clk 0:00:08.1]} 0-1

[Event "Live Chess"]
[Site "Chess.com"]
[Date "2024.06.01"]
[Round "-"]
[White "Dhaydon19"]
[Black "road2gm5000"]
[Result "1-0"]
[WhiteElo "2679"]
[BlackElo "1082"]
[TimeControl "300"]
[EndTime "14:11:09 PDT"]
[Termination "Dhaydon19 won by resignation"]

1. d4 {[%clk 0:04:57.5]} 1... d5 {[%clk 0:04:58.6]} 2. Nf3 {[%clk 0:04:57.2]}
2... Nf6 {[%clk 0:04:56.7]} 3. g3 {[%clk 0:04:56.9]} 3... Bg4 {[%clk 0:04:54.1]}
4. Bg2 {[%clk 0:04:56.6]} 4... e6 {[%clk 0:04:53.5]} 5. c3 {[%clk 0:04:55.8]}
5... c5 {[%clk 0:04:52.5]} 6. Nbd2 {[%clk 0:04:55.5]} 6... Nc6 {[%clk
0:04:51.5]} 7. dxc5 {[%clk 0:04:54.8]} 7... Bxc5 {[%clk 0:04:50.2]} 8. O-O
{[%clk 0:04:54.1]} 8... Qb6 {[%clk 0:04:49.2]} 9. Qa4 {[%clk 0:04:52.1]} 9...
O-O {[%clk 0:04:46.1]} 10. e4 {[%clk 0:04:50.8]} 10... dxe4 {[%clk 0:04:39.1]}
11. Nxe4 {[%clk 0:04:49.6]} 11... Nxe4 {[%clk 0:04:37.8]} 12. Qxe4 {[%clk
0:04:49.3]} 12... Bf5 {[%clk 0:04:30.3]} 13. Qa4 {[%clk 0:04:47.6]} 13... Qa5
{[%clk 0:04:26.4]} 14. Qxa5 {[%clk 0:04:45.8]} 14... Nxa5 {[%clk 0:04:26.3]} 15.
b4 {[%clk 0:04:45.3]} 15... Bxb4 {[%clk 0:04:23]} 16. cxb4 {[%clk 0:04:44.3]}
16... Nc6 {[%clk 0:04:21.2]} 17. a3 {[%clk 0:04:39.5]} 17... Rfd8 {[%clk
0:04:19.2]} 18. Be3 {[%clk 0:04:35]} 18... a6 {[%clk 0:04:16.3]} 19. Rfd1 {[%clk
0:04:32.9]} 19... Rxd1+ {[%clk 0:04:12.1]} 20. Rxd1 {[%clk 0:04:31.9]} 20... Rd8
{[%clk 0:04:11.1]} 21. Rxd8+ {[%clk 0:04:30.1]} 21... Nxd8 {[%clk 0:04:11]} 22.
Nd4 {[%clk 0:04:29.7]} 22... Bg6 {[%clk 0:04:07.5]} 23. Nb3 {[%clk 0:04:28.9]}
23... Nc6 {[%clk 0:04:05.2]} 24. Bxc6 {[%clk 0:04:26.5]} 24... bxc6 {[%clk
0:04:04.5]} 25. Nc5 {[%clk 0:04:26.2]} 25... Kf8 {[%clk 0:04:03]} 26. Nxa6
{[%clk 0:04:25.7]} 26... Ke7 {[%clk 0:04:02.2]} 27. Nb8 {[%clk 0:04:23.1]} 27...
Kd6 {[%clk 0:04:00.2]} 28. a4 {[%clk 0:04:20]} 28... Bc2 {[%clk 0:03:57.2]} 29.
a5 {[%clk 0:04:17.2]} 29... Bd3 {[%clk 0:03:55.7]} 30. Bb6 {[%clk 0:04:14.8]}
1-0